[Event "EYCC O18-ch 2024"]
[Site "Prague"]
[Date "2024.08.28"]
[Round "6.10"]
[White "Falkevall, Axel"]
[Black "Kocsmar, Akos"]
[Result "1/2-1/2"]
[ECO "D52"]
[WhiteElo "2325"]
[BlackElo "2187"]
[Annotator "RC"]
[PlyCount "42"]
[EventDate "2024.08.19"]
[EventType "swiss"]
[EventCountry "CZE"]
[SourceTitle "playchess.com"]
[Source "ChessBase"]
[SourceQuality "1"]
[TimeControl "5400+30"]

1. d4 {[%emt 0:00:03]} d5 {[%emt 0:00:04]} 2. c4 {[%emt 0:00:04]} c6 {[%emt 0:00:04]} 3. Nf3 {[%emt 0:00:04]} Nf6 {[%emt 0:00:05]} 4. Nc3 {[%emt 0:00:04]} e6 {[%emt 0:00:04]} 5. Bg5 {[%emt 0:00:21]} Nbd7 {[%emt 0:00:06]} 6. e3 {[%emt 0:00:05]} Qa5 {[%emt 0:00:04]} 7. Bxf6 {[%emt 0:00:08]} Nxf6 {[%emt 0:00:08]} 8. a3 {[%emt 0:00:04]} g6 {[%emt 0:00:05]} 9. Bd3 {[%emt 0:00:52]} Bg7 {[%emt 0:00:54]} 10. b4 {[%emt 0:01:44]} Qc7 {[%emt 0:01:39]} 11. O-O {[%emt 0:00:23]} O-O {[%emt 0:07:32]} 12. Qb3 {[%emt 0:02:01]} dxc4 {[%emt 0:06:19]} 13. Bxc4 {[%emt 0:00:13]} Nd7 {[%emt 0:05:57]} 14. Rac1 {[%emt 0:08:53]} e5 {[%emt 0:10:29]} 15. Nb5 {[%emt 0:09:35]} Qd8 {[%emt 0:20:05]} 16. Nd6 {[%emt 0:03:40]} Qe7 {[%emt 0:01:02]} 17. Nxc8 {[%emt 0:04:00]} Raxc8 {[%emt 0:00:59]} 18. dxe5 {[%emt 0:03:28]} Nxe5 {[%emt 0:00:37]} 19. Nxe5 {[%emt 0:00:14]} Bxe5 {[%emt 0:00:12]} 20. f4 {[%emt 0:04:25]} Bf6 {[%emt 0:00:24]} 21. Rce1 {[%emt 0:00:51]} b5 {[%emt 0:00:52]} 1/2-1/2

[Event "EYCC O18-ch 2024"]
[Site "Prague"]
[Date "2024.08.28"]
[Round "6.10"]
[White "Xhembulla, Aleksander"]
[Black "Pidluznij, Gleb"]
[Result "1-0"]
[ECO "C58"]
[WhiteElo "2201"]
[BlackElo "2414"]
[Annotator "RC"]
[PlyCount "111"]
[EventDate "2024.08.19"]
[EventType "swiss"]
[EventCountry "CZE"]
[SourceTitle "playchess.com"]
[Source "ChessBase"]
[SourceQuality "1"]
[TimeControl "5400+30"]

1. e4 {[%emt 0:00:03]} e5 {[%emt 0:00:10]} 2. Nf3 {[%emt 0:00:12]} Nc6 {[%emt 0:00:10]} 3. Bc4 {[%emt 0:00:05]} Nf6 {[%emt 0:00:19]} 4. Ng5 {[%emt 0:00:31]} d5 {[%emt 0:00:13]} 5. exd5 {[%emt 0:00:05]} Na5 {[%emt 0:00:09]} 6. Bb5+ {[%emt 0:00:04]} c6 {[%emt 0:00:11]} 7. dxc6 {[%emt 0:00:04]} bxc6 {[%emt 0:00:07]} 8. Bd3 {[%emt 0:00:04]} Nd5 {[%emt 0:00:13]} 9. Nf3 {[%emt 0:00:05]} Bd6 {[%emt 0:00:11]} 10. O-O {[%emt 0:00:07]} O-O {[%emt 0:00:12]} 11. Re1 {[%emt 0:00:03]} f5 {[%emt 0:00:59]} 12. Nxe5 {[%emt 0:00:05]} Qf6 {[%emt 0:00:09]} 13. Nf3 {[%emt 0:00:04]} g5 {[%emt 0:00:32]} 14. c4 {[%emt 0:00:05]} Nf4 {[%emt 0:00:08]} 15. Bf1 {[%emt 0:00:05]} g4 {[%emt 0:00:10]} 16. d4 {[%emt 0:00:15]} gxf3 {[%emt 0:00:16]} 17. Qxf3 {[%emt 0:00:06]} Ne6 {[%emt 0:00:12]} 18. Qc3 {[%emt 0:00:05]} Nb7 {[%emt 0:00:44]} 19. c5 {[%emt 0:00:24]} Bc7 {[%emt 0:01:57]} 20. b4 {[%emt 0:00:06]} a5 {[%emt 0:03:33]} 21. b5 {[%emt 0:00:23]} cxb5 {[%emt 0:00:09]} 22. Bxb5 {[%emt 0:00:07]} a4 {[%emt 0:01:27]} 23. Bc4 {[%emt 0:00:23]} Na5 {[%emt 0:16:45]} 24. Bd5 {[%emt 0:00:40]} Ra6 {[%emt 0:00:06]} 25. Qd3 {[%emt 0:01:22]} Rd8 {[%emt 0:18:56]} 26. Nc3 {[%emt 0:00:27]} Kh8 {[%emt 0:07:35]} 27. Rb1 {[%emt 0:13:27]} Nxd4 {[%emt 0:23:52]} 28. Bb2 {[%emt 0:06:28]} Nac6 {[%emt 0:07:00]} 29. Nb5 {[%emt 0:08:49]} Be5 {[%emt 0:03:27]} 30. Nd6 {[%emt 0:26:28]} Bxd6 {[%emt 0:10:36]} 31. cxd6 {[%emt 0:00:09]} Qxd6 {[%emt 0:00:20]} 32. Bxd4+ {[%emt 0:16:33]} Nxd4 {[%emt 0:00:05]} 33. Qxd4+ {[%emt 0:00:04]} Qf6 {[%emt 0:00:05]} 34. Qf4 {[%emt 0:01:29]} Rad6 {[%emt 0:01:30]} 35. Bf3 {[%emt 0:00:19]} Rd4 {[%emt 0:02:30]} 36. Qc7 {[%emt 0:00:47]} Qd6 {[%emt 0:02:25]} 37. Qa5 {[%emt 0:09:06]} Kg8 {[%emt 0:00:48]} 38. h3 {[%emt 0:01:54]} Be6 {[%emt 0:00:35]} 39. Rb6 {[%emt 0:00:55]} Qc7 {[%emt 0:00:08]} 40. Rexe6 {[%emt 0:00:44]} Rd1+ {[%emt 0:00:19]} 41. Bxd1 {[%emt 0:00:05]} Rxd1+ {[%emt 0:00:02]} 42. Re1 {[%emt 0:00:06]} Rxe1+ {[%emt 0:00:05]} 43. Qxe1 {[%emt 0:00:02]} Qxb6 {[%emt 0:00:01]} 44. Qe8+ {[%emt 0:00:14]} Kg7 {[%emt 0:00:01]} 45. Qxa4 {[%emt 0:00:14]} f4 {[%emt 0:00:48]} 46. Qd7+ {[%emt 0:02:25]} Kh6 {[%emt 0:00:06]} 47. Qd2 {[%emt 0:02:22]} Qf6 {[%emt 0:00:28]} 48. Kh2 {[%emt 0:01:27]} Kg6 {[%emt 0:00:56]} 49. a4 {[%emt 0:00:33]} Qe5 {[%emt 0:00:06]} 50. Qd3+ {[%emt 0:00:55]} Kg7 {[%emt 0:00:17]} 51. Qd7+ {[%emt 0:00:22]} Kg6 {[%emt 0:00:23]} 52. Qc6+ {[%emt 0:00:04]} Kg7 {[%emt 0:00:07]} 53. Qb7+ {[%emt 0:00:41]} Kg8 {[%emt 0:01:06]} 54. Qb6 {[%emt 0:01:56]} f3+ {[%emt 0:01:55]} 55. g3 {[%emt 0:00:04]} Qa1 {[%emt 0:00:54]} 56. Qb3+ {[%emt 0:00:20]} 1-0

[Event "EYCC O18-ch 2024"]
[Site "Prague"]
[Date "2024.08.28"]
[Round "6.11"]
[White "Gasparyan, Erik R."]
[Black "Kreken, Eivind Grunt"]
[Result "1/2-1/2"]
[ECO "C77"]
[WhiteElo "2350"]
[BlackElo "2294"]
[Annotator "RC"]
[PlyCount "110"]
[EventDate "2024.08.19"]
[EventType "swiss"]
[EventCountry "CZE"]
[SourceTitle "playchess.com"]
[Source "ChessBase"]
[SourceQuality "1"]
[TimeControl "5400+30"]

1. e4 {[%emt 0:00:07]} e5 {[%emt 0:00:18]} 2. Nf3 {[%emt 0:00:11]} Nc6 {[%emt 0:00:10]} 3. Bb5 {[%emt 0:00:10]} a6 {[%emt 0:00:16]} 4. Ba4 {[%emt 0:00:07]} Nf6 {[%emt 0:00:16]} 5. Nc3 {[%emt 0:00:36]} b5 {[%emt 0:01:44]} 6. Bb3 {[%emt 0:00:16]} Be7 {[%emt 0:02:03]} 7. O-O {[%emt 0:00:42]} O-O {[%emt 0:03:37]} 8. a4 {[%emt 0:00:45]} b4 {[%emt 0:03:14]} 9. Nd5 {[%emt 0:00:07]} Bd6 {[%emt 0:07:05]} 10. d4 {[%emt 0:07:46]} Nxd5 {[%emt 0:20:53]} 11. Bxd5 {[%emt 0:06:07]} Rb8 {[%emt 0:06:44]} 12. Bxc6 dxc6 13. dxe5 {[%emt 0:18:39]} Bc5 {[%emt 0:03:51]} 14. h3 h6 {[%emt 0:08:22]} 15. Qe2 {[%emt 0:07:44]} Qe7 {[%emt 0:01:21]} 16. Bf4 {[%emt 0:03:06]} a5 {[%emt 0:02:29]} 17. Rfd1 {[%emt 0:01:03]} Be6 {[%emt 0:05:11]} 18. Nd4 {[%emt 0:05:08]} Bxd4 {[%emt 0:00:44]} 19. Rxd4 {[%emt 0:00:04]} Rfd8 {[%emt 0:02:46]} 20. Rxd8+ {[%emt 0:03:58]} Rxd8 {[%emt 0:00:15]} 21. Be3 {[%emt 0:00:10]} b3 {[%emt 0:05:15]} 22. c3 {[%emt 0:02:30]} Qd7 {[%emt 0:00:54]} 23. Qa6 {[%emt 0:14:51]} Qd3 {[%emt 0:03:40]} 24. Qxd3 {[%emt 0:01:35]} Rxd3 {[%emt 0:00:02]} 25. Kf1 {[%emt 0:00:12]} Bc4 {[%emt 0:01:53]} 26. Ke1 {[%emt 0:00:05]} Kf8 {[%emt 0:01:38]} 27. h4 {[%emt 0:10:42]} h5 {[%emt 0:00:50]} 28. Bc5+ {[%emt 0:01:08]} Ke8 {[%emt 0:00:29]} 29. f3 {[%emt 0:03:58]} Kd7 {[%emt 0:01:09]} 30. Rd1 {[%emt 0:00:09]} Rxd1+ {[%emt 0:00:46]} 31. Kxd1 {[%emt 0:00:04]} Ke6 {[%emt 0:01:14]} 32. Kd2 {[%emt 0:04:17]} g6 {[%emt 0:08:05]} 33. f4 {[%emt 0:02:32]} Ba6 {[%emt 0:00:48]} 34. Ke3 {[%emt 0:00:22]} Bc4 {[%emt 0:01:01]} 35. Kd4 {[%emt 0:00:35]} Be2 {[%emt 0:01:11]} 36. g3 {[%emt 0:00:26]} Bf1 {[%emt 0:01:40]} 37. c4 {[%emt 0:01:50]} Bg2 {[%emt 0:01:04]} 38. Kd3 {[%emt 0:01:12]} Bf1+ {[%emt 0:01:25]} 39. Kc3 {[%emt 0:00:05]} Bg2 {[%emt 0:00:18]} 40. Kxb3 {[%emt 0:03:22]} Bxe4 {[%emt 0:00:48]} 41. Kc3 {[%emt 0:00:47]} Kd7 {[%emt 0:00:48]} 42. Be3 {[%emt 0:02:20]} Kc8 {[%emt 0:00:32]} 43. Bd2 {[%emt 0:00:37]} Kb7 {[%emt 0:00:27]} 44. Kd4 {[%emt 0:01:08]} Bc2 {[%emt 0:00:12]} 45. Bxa5 {[%emt 0:00:13]} Bxa4 {[%emt 0:01:06]} 46. e6 {[%emt 0:01:00]} fxe6 {[%emt 0:00:10]} 47. Ke5 {[%emt 0:00:00]} Bb3 {[%emt 0:03:45]} 48. Kxe6 {[%emt 0:00:42]} Bxc4+ {[%emt 0:00:24]} 49. Kf6 {[%emt 0:00:04]} Bd3 {[%emt 0:00:13]} 50. Kg5 {[%emt 0:00:24]} Kc8 {[%emt 0:00:48]} 51. Bc3 {[%emt 0:01:19]} Kd7 {[%emt 0:00:25]} 52. Be5 {[%emt 0:00:05]} Ke6 {[%emt 0:00:24]} 53. Bxc7 {[%emt 0:00:05]} Bf5 {[%emt 0:00:08]} 54. Be5 {[%emt 0:00:09]} Kf7 {[%emt 0:00:29]} 55. Bd4 {[%emt 0:00:06]} Bd7 {[%emt 0:00:08]} 1/2-1/2

[Event "EYCC O18-ch 2024"]
[Site "Prague"]
[Date "2024.08.28"]
[Round "6.11"]
[White "Jackson, Edward"]
[Black "Baranciuc, Alexandr"]
[Result "0-1"]
[ECO "C72"]
[WhiteElo "2156"]
[BlackElo "2332"]
[Annotator "RC"]
[PlyCount "102"]
[EventDate "2024.08.19"]
[EventType "swiss"]
[EventCountry "CZE"]
[SourceTitle "playchess.com"]
[Source "ChessBase"]
[SourceQuality "1"]
[TimeControl "5400+30"]

1. e4 {[%emt 0:00:04]} e5 {[%emt 0:00:07]} 2. Nf3 {[%emt 0:00:06]} Nc6 {[%emt 0:00:04]} 3. Bb5 {[%emt 0:00:07]} a6 {[%emt 0:00:05]} 4. Ba4 {[%emt 0:00:06]} d6 {[%emt 0:00:04]} 5. O-O {[%emt 0:00:13]} Bd7 {[%emt 0:00:02]} 6. d4 {[%emt 0:00:26]} b5 {[%emt 0:02:03]} 7. Bb3 {[%emt 0:00:06]} Nxd4 {[%emt 0:00:06]} 8. Nxd4 {[%emt 0:00:06]} exd4 {[%emt 0:00:01]} 9. c3 {[%emt 0:00:09]} d3 {[%emt 0:00:04]} 10. Qxd3 {[%emt 0:01:18]} Nf6 {[%emt 0:00:07]} 11. Bg5 {[%emt 0:01:17]} Be7 {[%emt 0:02:44]} 12. Nd2 {[%emt 0:01:05]} h6 {[%emt 0:01:59]} 13. Bh4 {[%emt 0:01:18]} O-O {[%emt 0:01:11]} 14. Bc2 {[%emt 0:11:07]} g6 {[%emt 0:04:58]} 15. f4 {[%emt 0:03:04]} Nh5 {[%emt 0:18:59]} 16. Bxe7 {[%emt 0:09:23]} Qxe7 {[%emt 0:00:04]} 17. Rae1 {[%emt 0:08:52]} Rfe8 {[%emt 0:02:03]} 18. Qf3 {[%emt 0:02:46]} Nf6 {[%emt 0:06:09]} 19. e5 {[%emt 0:08:24]} dxe5 {[%emt 0:00:27]} 20. fxe5 {[%emt 0:00:26]} Nh7 {[%emt 0:00:21]} 21. Ne4 {[%emt 0:02:18]} Rad8 {[%emt 0:08:29]} 22. Qf4 {[%emt 0:08:10]} Bf5 {[%emt 0:12:18]} 23. Bb3 {[%emt 0:07:30]} Kg7 {[%emt 0:01:34]} 24. Ng3 {[%emt 0:02:41]} Be6 {[%emt 0:00:48]} 25. h4 {[%emt 0:07:21]} Rd7 {[%emt 0:08:49]} 26. h5 {[%emt 0:01:10]} Qg5 {[%emt 0:02:22]} 27. Qxg5 {[%emt 0:07:10]} Nxg5 {[%emt 0:00:07]} 28. hxg6 {[%emt 0:00:39]} fxg6 {[%emt 0:01:38]} 29. Ne4 {[%emt 0:02:22]} Nxe4 {[%emt 0:00:04]} 30. Bxe6 Rxe6 {[%emt 0:00:01]} 31. Rxe4 {[%emt 0:01:02]} h5 {[%emt 0:02:58]} 32. a4 {[%emt 0:00:52]} Rd5 {[%emt 0:00:44]} 33. Rfe1 {[%emt 0:00:15]} g5 {[%emt 0:00:07]} 34. c4 {[%emt 0:01:19]} bxc4 {[%emt 0:01:43]} 35. Rxc4 {[%emt 0:00:10]} c5 {[%emt 0:00:03]} 36. b4 {[%emt 0:02:23]} cxb4 {[%emt 0:00:16]} 37. Rxb4 {[%emt 0:00:05]} Rdxe5 {[%emt 0:00:57]} 38. Rxe5 {[%emt 0:00:06]} Rxe5 {[%emt 0:00:01]} 39. Rb6 {[%emt 0:02:39]} Ra5 {[%emt 0:00:14]} 40. Rb4 {[%emt 0:00:05]} Kf6 {[%emt 0:00:16]} 41. Kf2 {[%emt 0:00:12]} Re5 {[%emt 0:00:42]} 42. Rb6+ {[%emt 0:01:09]} Re6 {[%emt 0:00:05]} 43. Rb8 {[%emt 0:03:02]} Kf5 {[%emt 0:01:54]} 44. Kf3 {[%emt 0:00:46]} h4 {[%emt 0:03:28]} 45. Rb4 {[%emt 0:01:01]} Rc6 {[%emt 0:00:33]} 46. Kf2 {[%emt 0:00:48]} Rc2+ {[%emt 0:00:14]} 47. Kg1 {[%emt 0:00:31]} g4 {[%emt 0:02:48]} 48. Kf1 {[%emt 0:02:19]} Rc1+ {[%emt 0:00:10]} 49. Ke2 {[%emt 0:01:08]} h3 {[%emt 0:00:27]} 50. gxh3 {[%emt 0:00:06]} gxh3 {[%emt 0:00:01]} 51. Rh4 {[%emt 0:02:17]} h2 {[%emt 0:00:02]} 0-1

[Event "EYCC O18-ch 2024"]
[Site "Prague"]
[Date "2024.08.28"]
[Round "6.12"]
[White "Slagboom, Leandro"]
[Black "Valiyev, Shahin"]
[Result "1-0"]
[ECO "B23"]
[WhiteElo "2331"]
[BlackElo "2245"]
[Annotator "RC"]
[PlyCount "161"]
[EventDate "2024.08.19"]
[EventType "swiss"]
[EventCountry "CZE"]
[SourceTitle "playchess.com"]
[Source "ChessBase"]
[SourceQuality "1"]
[TimeControl "5400+30"]

1. e4 {[%emt 0:00:04]} c5 {[%emt 0:00:08]} 2. Nc3 {[%emt 0:00:08]} d6 {[%emt 0:00:28]} 3. d4 {[%emt 0:00:06]} cxd4 {[%emt 0:00:21]} 4. Qxd4 {[%emt 0:00:06]} Nc6 {[%emt 0:01:10]} 5. Qd2 {[%emt 0:00:09]} g6 {[%emt 0:01:59]} 6. b3 {[%emt 0:00:20]} Bh6 {[%emt 0:00:32]} 7. f4 {[%emt 0:00:09]} Nf6 {[%emt 0:01:38]} 8. Bb2 {[%emt 0:00:18]} O-O {[%emt 0:00:30]} 9. O-O-O {[%emt 0:00:20]} a5 {[%emt 0:00:29]} 10. a4 {[%emt 0:00:56]} Nb4 {[%emt 0:00:34]} 11. Nf3 {[%emt 0:01:04]} Bg4 {[%emt 0:04:41]} 12. Bc4 {[%emt 0:01:47]} Rc8 {[%emt 0:05:46]} 13. Qe3 {[%emt 0:13:37]} Rxc4 {[%emt 0:05:08]} 14. bxc4 {[%emt 0:00:53]} Qc7 {[%emt 0:01:23]} 15. c5 {[%emt 0:03:05]} Qxc5 {[%emt 0:06:15]} 16. Qxc5 {[%emt 0:00:17]} Bxf4+ {[%emt 0:00:58]} 17. Kb1 {[%emt 0:01:17]} dxc5 {[%emt 0:00:05]} 18. Rhe1 {[%emt 0:15:49]} Be6 {[%emt 0:18:31]} 19. Bc1 {[%emt 0:08:38]} Bxc1 {[%emt 0:00:59]} 20. Kxc1 {[%emt 0:00:05]} h6 {[%emt 0:00:42]} 21. Ne5 {[%emt 0:03:55]} Rc8 {[%emt 0:06:45]} 22. h3 {[%emt 0:04:20]} Kg7 {[%emt 0:01:45]} 23. Kb2 {[%emt 0:00:47]} Ne8 {[%emt 0:08:19]} 24. Nb5 {[%emt 0:19:09]} Nc7 {[%emt 0:08:40]} 25. Na3 {[%emt 0:02:27]} Nc6 {[%emt 0:01:26]} 26. Nd3 {[%emt 0:06:22]} c4 {[%emt 0:01:29]} 27. Nf4 {[%emt 0:03:01]} Ne5 {[%emt 0:00:36]} 28. Kc3 {[%emt 0:02:12]} g5 {[%emt 0:04:02]} 29. Nxe6+ {[%emt 0:03:06]} Nxe6 {[%emt 0:00:04]} 30. Rd5 {[%emt 0:00:48]} f6 {[%emt 0:00:01]} 31. Rxa5 {[%emt 0:00:59]} Nc5 {[%emt 0:00:01]} 32. Nb5 {[%emt 0:04:18]} Kf7 {[%emt 0:05:32]} 33. Nd4 {[%emt 0:00:28]} h5 {[%emt 0:05:29]} 34. Rb5 {[%emt 0:00:51]} Nxa4+ {[%emt 0:06:23]} 35. Kb4 {[%emt 0:00:08]} Nb2 {[%emt 0:00:04]} 36. Rf1 {[%emt 0:01:42]} c3 {[%emt 0:03:55]} 37. Rxe5 {[%emt 0:01:16]} Rc4+ {[%emt 0:00:05]} 38. Kb3 {[%emt 0:00:13]} Rxd4 {[%emt 0:00:01]} 39. Kxc3 {[%emt 0:00:56]} Rd1 {[%emt 0:00:04]} 40. Ref5 {[%emt 0:00:23]} Na4+ {[%emt 0:00:43]} 41. Kc4 {[%emt 0:01:59]} Nb6+ {[%emt 0:01:55]} 42. Kb5 {[%emt 0:00:28]} Rxf1 {[%emt 0:00:47]} 43. Rxf1 {[%emt 0:00:03]} Nd7 {[%emt 0:00:03]} 44. Kc4 {[%emt 0:01:04]} Ke6 {[%emt 0:00:20]} 45. Kd4 {[%emt 0:00:43]} Kd6 {[%emt 0:00:12]} 46. h4 {[%emt 0:00:55]} Nc5 {[%emt 0:00:47]} 47. hxg5 {[%emt 0:00:16]} Ne6+ {[%emt 0:00:09]} 48. Kc4 {[%emt 0:01:10]} Nxg5 {[%emt 0:00:50]} 49. Kd3 {[%emt 0:00:37]} Ne6 {[%emt 0:01:25]} 50. g3 {[%emt 0:00:10]} Ng7 {[%emt 0:00:08]} 51. Ke3 {[%emt 0:00:56]} Ne6 {[%emt 0:00:20]} 52. Rh1 {[%emt 0:00:30]} Ng7 {[%emt 0:00:02]} 53. Rd1+ {[%emt 0:00:20]} Kc7 {[%emt 0:00:10]} 54. Kf4 {[%emt 0:00:53]} Kc6 {[%emt 0:01:16]} 55. Ra1 {[%emt 0:00:53]} Kd7 {[%emt 0:00:22]} 56. Ra7 {[%emt 0:00:14]} Ne6+ {[%emt 0:00:49]} 57. Ke3 {[%emt 0:00:05]} Nd8 {[%emt 0:01:12]} 58. c3 {[%emt 0:00:20]} Kc7 {[%emt 0:00:31]} 59. Kf4 {[%emt 0:00:42]} Ne6+ {[%emt 0:00:28]} 60. Kf5 {[%emt 0:00:12]} Nc5 {[%emt 0:00:12]} 61. Ra1 {[%emt 0:00:46]} b5 {[%emt 0:00:14]} 62. Rh1 {[%emt 0:01:08]} Na4 {[%emt 0:00:05]} 63. Rc1 {[%emt 0:00:06]} Nc5 {[%emt 0:00:15]} 64. Rh1 {[%emt 0:00:26]} Na4 {[%emt 0:00:00]} 65. Ke6 {[%emt 0:00:33]} Nxc3 {[%emt 0:00:59]} 66. Rc1 {[%emt 0:00:42]} b4 {[%emt 0:00:01]} 67. Kxe7 {[%emt 0:00:21]} Kb6 {[%emt 0:00:05]} 68. Re1 {[%emt 0:00:38]} b3 {[%emt 0:01:53]} 69. Kxf6 {[%emt 0:00:05]} b2 {[%emt 0:00:07]} 70. e5 {[%emt 0:00:19]} b1=Q {[%emt 0:00:01]} 71. Rxb1+ {[%emt 0:00:04]} Nxb1 {[%emt 0:00:09]} 72. e6 {[%emt 0:00:19]} Nc3 {[%emt 0:01:05]} 73. e7 {[%emt 0:00:16]} Nd5+ {[%emt 0:00:05]} 74. Kf7 {[%emt 0:00:11]} Nc7 {[%emt 0:00:48]} 75. e8=Q {[%emt 0:00:06]} Nxe8 {[%emt 0:00:05]} 76. Kxe8 {[%emt 0:00:04]} Kc7 {[%emt 0:00:07]} 77. Ke7 {[%emt 0:00:21]} Kc8 {[%emt 0:00:32]} 78. Kf6 {[%emt 0:00:08]} Kd8 {[%emt 0:00:03]} 79. Kg6 {[%emt 0:00:23]} h4 {[%emt 0:00:05]} 80. gxh4 {[%emt 0:00:05]} Ke7 {[%emt 0:00:02]} 81. Kg7 {[%emt 0:00:04]} 1-0

[Event "EYCC O18-ch 2024"]
[Site "Prague"]
[Date "2024.08.28"]
[Round "6.12"]
[White "Serrano Almendros, Angel"]
[Black "Bakija, Alan"]
[Result "0-1"]
[ECO "C26"]
[WhiteElo "2310"]
[BlackElo "2171"]
[Annotator "RC"]
[PlyCount "132"]
[EventDate "2024.08.19"]
[EventType "swiss"]
[EventCountry "CZE"]
[SourceTitle "playchess.com"]
[Source "ChessBase"]
[SourceQuality "1"]
[TimeControl "5400+30"]

1. e4 {[%emt 0:00:02]} e5 {[%emt 0:00:04]} 2. Nc3 {[%emt 0:00:03]} Nf6 {[%emt 0:00:03]} 3. d4 {[%emt 0:00:04]} exd4 {[%emt 0:00:04]} 4. Qxd4 {[%emt 0:00:05]} Nc6 {[%emt 0:00:03]} 5. Qd3 {[%emt 0:00:05]} d5 {[%emt 0:00:07]} 6. Bg5 {[%emt 0:01:57]} d4 {[%emt 0:00:52]} 7. Bxf6 {[%emt 0:00:11]} gxf6 {[%emt 0:00:06]} 8. Nd5 {[%emt 0:00:06]} f5 {[%emt 0:00:03]} 9. Qf3 {[%emt 0:02:53]} fxe4 {[%emt 0:09:36]} 10. Nf6+ {[%emt 0:07:12]} Ke7 {[%emt 0:00:03]} 11. Nxe4 {[%emt 0:00:18]} Bg7 {[%emt 0:03:09]} 12. O-O-O {[%emt 0:09:53]} Be6 {[%emt 0:07:52]} 13. Qa3+ {[%emt 0:16:21]} Ke8 {[%emt 0:00:18]} 14. Nf3 {[%emt 0:00:38]} Qe7 {[%emt 0:10:53]} 15. Qa4 {[%emt 0:02:41]} Kf8 {[%emt 0:14:28]} 16. Bb5 {[%emt 0:07:57]} Bd5 {[%emt 0:07:58]} 17. Ng3 {[%emt 0:01:00]} Qc5 {[%emt 0:10:24]} 18. a3 {[%emt 0:15:07]} Re8 {[%emt 0:07:18]} 19. Kb1 {[%emt 0:01:42]} a6 {[%emt 0:05:14]} 20. Bxc6 {[%emt 0:00:22]} Bxc6 {[%emt 0:00:11]} 21. Qb3 {[%emt 0:00:17]} h5 {[%emt 0:06:23]} 22. h4 {[%emt 0:02:57]} Bd5 {[%emt 0:03:26]} 23. Qd3 {[%emt 0:01:25]} Bc4 {[%emt 0:00:06]} 24. Qd2 {[%emt 0:00:28]} Rh6 {[%emt 0:04:01]} 25. Qg5 {[%emt 0:08:23]} Qb6 {[%emt 0:04:05]} 26. Nxh5 {[%emt 0:07:28]} Rg6 {[%emt 0:00:47]} 27. Qc1 {[%emt 0:00:03]} Bh6 {[%emt 0:01:43]} 28. Nf4 {[%emt 0:02:30]} Rxg2 {[%emt 0:00:42]} 29. Ng5 {[%emt 0:00:31]} Rxf2 {[%emt 0:00:22]} 30. Rhg1 {[%emt 0:02:02]} Re3 {[%emt 0:00:49]} 31. Nd3 {[%emt 0:02:54]} Rh2 {[%emt 0:01:18]} 32. Rh1 {[%emt 0:01:40]} Rxh1 {[%emt 0:01:27]} 33. Rxh1 {[%emt 0:00:04]} Qb5 {[%emt 0:00:42]} 34. Ka1 {[%emt 0:01:14]} Bxg5 {[%emt 0:01:27]} 35. hxg5 {[%emt 0:00:02]} Qxg5 {[%emt 0:00:03]} 36. Qd2 {[%emt 0:00:28]} Bxd3 {[%emt 0:00:54]} 37. cxd3 {[%emt 0:00:01]} a5 {[%emt 0:01:19]} 38. Qh2 {[%emt 0:00:14]} Qe5 {[%emt 0:00:05]} 39. Qf2 {[%emt 0:00:59]} Ke7 {[%emt 0:00:25]} 40. Qh4+ {[%emt 0:00:16]} Kd7 {[%emt 0:00:48]} 41. Qg4+ {[%emt 0:00:17]} Kd6 {[%emt 0:00:11]} 42. Qh4 {[%emt 0:00:42]} f6 {[%emt 0:00:03]} 43. Rf1 {[%emt 0:00:07]} Kc5 {[%emt 0:00:48]} 44. Ka2 {[%emt 0:00:35]} Qd5+ {[%emt 0:01:02]} 45. Ka1 {[%emt 0:00:00]} Rf3 {[%emt 0:00:28]} 46. Rc1+ {[%emt 0:00:25]} Kb6 {[%emt 0:00:07]} 47. Qh7 {[%emt 0:00:53]} Qe5 {[%emt 0:00:21]} 48. Rc4 {[%emt 0:00:42]} Rf1+ {[%emt 0:01:00]} 49. Ka2 {[%emt 0:00:00]} Rd1 {[%emt 0:00:27]} 50. Rc2 {[%emt 0:00:35]} Qe6+ {[%emt 0:00:08]} 51. Rc4 {[%emt 0:00:07]} Qe5 {[%emt 0:00:06]} 52. Rc2 {[%emt 0:00:03]} Re1 {[%emt 0:00:07]} 53. Rc4 {[%emt 0:00:12]} Re2 {[%emt 0:00:14]} 54. Qd7 {[%emt 0:00:10]} Re3 {[%emt 0:00:22]} 55. Rxd4 {[%emt 0:02:45]} Qe6+ {[%emt 0:00:17]} 56. Rd5 {[%emt 0:00:22]} Qxd7 {[%emt 0:00:55]} 57. Rxd7 {[%emt 0:00:02]} Re6 {[%emt 0:00:22]} 58. Rf7 {[%emt 0:00:22]} a4 {[%emt 0:00:23]} 59. Kb1 {[%emt 0:00:12]} Kc6 {[%emt 0:01:36]} 60. Kc2 {[%emt 0:00:12]} Kd6 {[%emt 0:00:05]} 61. Kc3 {[%emt 0:00:07]} b5 {[%emt 0:00:33]} 62. Kb4 {[%emt 0:00:53]} c6 {[%emt 0:00:12]} 63. Kc3 {[%emt 0:03:29]} Ke5 {[%emt 0:00:23]} 64. Kd2 {[%emt 0:00:08]} Kf4 {[%emt 0:01:05]} 65. d4 {[%emt 0:00:28]} Ke4 {[%emt 0:00:13]} 66. Kc3 {[%emt 0:00:13]} Rd6 {[%emt 0:01:20]} 0-1

[Event "EYCC O18-ch 2024"]
[Site "Prague"]
[Date "2024.08.28"]
[Round "6.13"]
[White "Shamatava, Nikolozi"]
[Black "Garcia Fernandez, Victor"]
[Result "0-1"]
[ECO "B34"]
[WhiteElo "2196"]
[BlackElo "2313"]
[Annotator "RC"]
[PlyCount "93"]
[EventDate "2024.08.19"]
[EventType "swiss"]
[EventCountry "CZE"]
[SourceTitle "playchess.com"]
[Source "ChessBase"]
[SourceQuality "1"]
[TimeControl "5400+30"]

1. e4 {[%emt 0:00:04]} c5 {[%emt 0:00:07]} 2. Nf3 {[%emt 0:00:05]} g6 {[%emt 0:00:10]} 3. d4 {[%emt 0:00:51]} cxd4 {[%emt 0:00:05]} 4. Nxd4 {[%emt 0:00:11]} Nc6 {[%emt 0:00:00]} 5. Nxc6 {[%emt 0:03:50]} bxc6 {[%emt 0:01:00]} 6. Qd4 Nf6 7. e5 {[%emt 0:02:07]} Nd5 {[%emt 0:01:42]} 8. c4 {[%emt 0:11:43]} Qb6 {[%emt 0:03:56]} 9. Qxb6 {[%emt 0:02:00]} Nxb6 {[%emt 0:00:03]} 10. Nc3 {[%emt 0:16:35]} Bg7 {[%emt 0:00:38]} 11. c5 {[%emt 0:00:54]} Nd5 {[%emt 0:00:06]} 12. Nxd5 {[%emt 0:00:04]} cxd5 {[%emt 0:00:04]} 13. Bf4 {[%emt 0:00:44]} f6 {[%emt 0:01:39]} 14. exf6 {[%emt 0:01:02]} Bxf6 {[%emt 0:00:06]} 15. Rb1 {[%emt 0:02:18]} O-O {[%emt 0:12:26]} 16. g3 {[%emt 0:10:24]} Bb7 {[%emt 0:16:31]} 17. Bh3 {[%emt 0:05:28]} Bc6 {[%emt 0:03:16]} 18. O-O {[%emt 0:00:12]} e5 {[%emt 0:00:32]} 19. Bd2 {[%emt 0:03:11]} a5 {[%emt 0:07:46]} 20. a3 {[%emt 0:03:58]} a4 {[%emt 0:00:35]} 21. Rfd1 {[%emt 0:10:04]} Rab8 {[%emt 0:02:52]} 22. Bg2 {[%emt 0:03:06]} Rfe8 {[%emt 0:01:36]} 23. Ba5 {[%emt 0:02:21]} d4 {[%emt 0:02:17]} 24. Bb6 {[%emt 0:02:28]} d5 {[%emt 0:02:26]} 25. b4 {[%emt 0:02:41]} axb3 26. a4 {[%emt 0:00:33]} e4 {[%emt 0:01:12]} 27. a5 {[%emt 0:00:13]} d3 {[%emt 0:00:30]} 28. a6 {[%emt 0:00:13]} b2 {[%emt 0:00:23]} 29. a7 {[%emt 0:00:11]} Ra8 30. Rd2 Bc3 {[%emt 0:02:26]} 31. Rdxb2 {[%emt 0:01:35]} Bxb2 {[%emt 0:00:06]} 32. Rxb2 {[%emt 0:00:00]} d4 {[%emt 0:02:50]} 33. Kf1 {[%emt 0:05:22]} g5 {[%emt 0:01:26]} 34. Ke1 {[%emt 0:05:01]} g4 {[%emt 0:00:53]} 35. Bf1 {[%emt 0:01:35]} Re7 {[%emt 0:00:42]} 36. Rb4 {[%emt 0:00:50]} Rd7 {[%emt 0:00:43]} 37. Rb2 {[%emt 0:00:23]} Kf7 {[%emt 0:00:12]} 38. Ra2 {[%emt 0:00:40]} Ke6 {[%emt 0:00:39]} 39. Bg2 {[%emt 0:00:44]} Ke5 {[%emt 0:02:39]} 40. Ra3 {[%emt 0:00:38]} d2+ 41. Kd1 {[%emt 0:00:44]} Rf7 {[%emt 0:00:49]} 42. Bf1 {[%emt 0:00:08]} Rxf2 {[%emt 0:00:30]} 43. Bc4 {[%emt 0:00:49]} e3 {[%emt 0:00:17]} 44. Bc7+ {[%emt 0:01:15]} Kf5 {[%emt 0:00:12]} 45. Bd3+ Be4 46. Bb8 {[%emt 0:02:15]} Bxd3 {[%emt 0:00:46]} 47. Rxd3 {[%emt 0:00:03]} 0-1